bitfinex-derivatives/quotes_SOLF0:USTF0_20241029
["timestamp","ask_amount","ask_price","bid_price","bid_amount"]
[1730236263557,4.56,178.54,178.48,0.43229164]
[1730236263861,2.801,178.53,178.48,0.43229164]
[1730236264359,2.8013,178.52,178.49,2.8015]
[1730236264555,7.32503512,178.54,178.48,0.43229164]
[1730236264755,2.8014,178.51,178.48,3.23399164]
[1730236265461,7.32503512,178.54,178.48,0.43229164]
[1730236266050,2.8012,178.52,178.49,2.8016]
[1730236266251,2.8012,178.52,178.48,0.43229164]
[1730236266447,7.32503512,178.54,178.48,0.43229164]
[1730236266749,7.32503512,178.54,178.52,2.8011]
[1730236267457,10.12593512,178.54,178.52,2.8011]
[1730236268551,3.6745,178.57,178.48,0.43229164]
[1730236268752,1.87,178.57,178.48,0.43229164]
[1730236269166,4.6705,178.57,178.53,2.8009]
[1730236269560,4.56,178.58,178.55,2.8006]
[1730236270459,2.8001,178.59,178.56,2.8005]
[1730236270963,185.59132575,178.6,178.51,1.7431]
[1730236271156,188.39142575,178.6,178.56,2.8005]
[1730236271352,185.59132575,178.6,178.56,2.8005]
[1730236271559,185.59132575,178.6,178.51,1.7431]
[1730236271767,2.8002,178.59,178.55,2.8006]
[1730236272570,2.8002,178.59,178.56,2.8004]
[1730236272763,3.6153,178.62,178.51,1.7431]
[1730236273162,2.7998,178.61,178.57,2.8003]
[1730236275175,2.7999,178.61,178.57,2.8003]
[1730236276692,7.38512926,178.63,178.57,2.8003]
[1730236276889,2.8,178.6,178.57,2.8003]
[1730236278090,7.38512926,178.63,178.54,4.56]
[1730236278284,2.82512926,178.63,178.54,4.56]
[1730236278490,6.3296,178.64,178.54,4.56]
[1730236278688,2.7998,178.61,178.57,2.8004]
[1730236278991,2.82076798,178.61,178.54,4.56]
[1730236279291,4.56,178.64,178.54,4.56]
[1730236279497,2.7996,178.62,178.57,2.8004]
[1730236279687,2.7996,178.62,178.54,4.56]
[1730236280092,2.7996,178.62,178.58,2.8001]
[1730236280578,2.7996,178.62,178.54,4.56]
[1730236280782,2.7996,178.62,178.59,2.8]
[1730236281684,9.02747436,178.63,178.54,4.56]
[1730236281890,2.7992,178.65,178.55,3.6648]
[1730236282178,5.67076181,178.65,178.61,2.7996]
[1730236282383,2.7993,178.64,178.61,2.7996]
[1730236283499,2.87156181,178.65,178.6,2.7999]
[1730236283690,2.7989,178.67,178.59,1.7712]
[1730236284193,5.63180078,178.67,178.63,2.7993]
[1730236284388,2.83290078,178.67,178.59,1.7712]
[1730236284587,2.7989,178.67,178.59,1.7712]
[1730236284896,5.55924132,178.67,178.59,1.7712]
[1730236285300,5.55924132,178.67,178.63,2.7994]
[1730236285598,5.55924132,178.67,178.59,1.7712]
[1730236285599,2.7987,178.68,178.59,1.7712]
[1730236285794,5.66545819,178.68,178.59,1.7712]
[1730236286399,5.66545819,178.68,178.64,2.7992]
[1730236287094,10.75227436,178.71,178.62,4.56]
[1730236287296,1.7248,178.71,178.62,4.56]
[1730236287600,2.77908032,178.7,178.62,4.56]
[1730236287998,2.7986,178.69,178.65,2.799]
[1730236288397,2.77908032,178.7,178.62,4.56]
[1730236288594,2.77908032,178.7,178.67,2.7987]
[1730236289097,5.57748032,178.7,178.66,2.799]
[1730236289400,2.7984,178.7,178.66,2.799]
[1730236289597,2.7983,178.71,178.65,2.7991]
[1730236289806,7.3198194,178.73,178.62,4.56]
[1730236291396,7.3198194,178.73,178.64,2.7992]
[1730236291397,2.7988,178.68,178.64,2.7992]
[1730236292195,2.7988,178.68,178.65,2.7991]
[1730236293002,2.7989,178.67,178.63,7.3593]
[1730236293407,2.7989,178.67,178.63,4.56]
[1730236294001,2.7989,178.67,178.61,2.7997]
[1730236294319,7.3198194,178.73,178.62,4.56]
[1730236295005,2.7986,178.69,178.65,2.7991]
[1730236295401,2.7598194,178.73,178.62,4.56]
[1730236295601,2.7984,178.7,178.66,2.7989]
[1730236295898,5.54885197,178.7,178.66,2.7989]
[1730236296098,5.54885197,178.7,178.67,2.7988]
[1730236296605,2.7987,178.68,178.62,4.56]
[1730236296809,2.7987,178.68,178.65,2.7991]
[1730236297310,2.7985,178.69,178.65,2.799]
[1730236297610,2.7985,178.69,178.62,4.56]
[1730236297903,2.7985,178.69,178.66,2.7989]
[1730236298108,2.7985,178.69,178.62,4.56]
[1730236298508,2.7985,178.69,178.65,2.799]
[1730236300214,2.7987,178.68,178.65,2.799]
[1730236302003,2.799,178.66,178.63,2.7994]
[1730236302202,2.7405294,178.7,178.62,4.56]
[1730236302409,6.4029,178.74,178.62,4.56]
[1730236302607,2.7992,178.65,178.62,7.3596]
[1730236303410,2.79330164,178.66,178.62,4.56]
[1730236303603,2.7991,178.66,178.63,2.7994]
[1730236303814,5.57139937,178.66,178.63,2.7994]
[1730236304515,2.77229937,178.66,178.64,2.7993]
[1730236304717,2.7989,178.67,178.64,2.7993]
[1730236304904,6.4029,178.74,178.64,2.7993]
[1730236305214,2.7987,178.68,178.65,2.7991]
[1730236307818,2.7988,178.68,178.65,2.7991]
[1730236308516,2.7988,178.68,178.62,4.56]
[1730236308517,9.26973669,178.74,178.62,4.56]
[1730236308714,9.26973669,178.74,178.63,2.7994]
[1730236308715,2.7992,178.65,178.63,2.7994]
[1730236308925,9.26973669,178.74,178.63,2.7994]
[1730236309307,2.7991,178.66,178.63,2.7994]
[1730236309512,9.26973669,178.74,178.64,2.7992]
[1730236311317,2.7989,178.67,178.64,2.7992]
[1730236311523,9.24973669,178.74,178.64,4.54]
[1730236312117,2.7983,178.71,178.64,4.54]
[1730236313622,4.70973669,178.74,178.64,4.54]
[1730236314322,2.798,178.72,178.68,2.7985]
[1730236315521,2.798,178.73,178.69,2.7984]
[1730236315713,2.798,178.73,178.64,4.54]
[1730236316426,2.7981,178.72,178.64,4.54]
[1730236317011,2.86683669,178.74,178.64,4.54]
[1730236317207,3.485,178.76,178.64,4.54]
[1730236317821,2.7979,178.73,178.64,4.54]
[1730236318429,2.7979,178.73,178.69,2.7984]
[1730236319517,2.7979,178.73,178.68,4.54]
[1730236319518,2.86546763,178.74,178.7,2.7983]
[1730236319820,3.485,178.76,178.68,4.54]
[1730236320020,2.798,178.73,178.69,2.7985]
[1730236320217,2.80051517,178.73,178.61,2.5079]
[1730236320422,4.54,178.73,178.62,4.54]
[1730236320623,2.7985,178.69,178.65,2.7991]
[1730236321510,1.2587,178.72,178.62,4.54]
[1730236321716,2.7984,178.7,178.62,4.54]
[1730236322621,2.7982,178.71,178.62,4.54]
[1730236323225,2.7982,178.71,178.64,2.7992]
[1730236323427,7.34250898,178.73,178.62,4.54]
[1730236323614,2.798,178.73,178.62,4.54]
[1730236323817,9.2837,178.76,178.67,2.7987]
[1730236324626,9.2837,178.76,178.66,4.54]
[1730236325230,9.2837,178.76,178.69,2.7985]
[1730236325426,9.2837,178.76,178.66,4.54]
[1730236325628,2.86575415,178.75,178.66,4.54]
[1730236326333,2.7978,178.74,178.7,2.7983]
[1730236327225,2.7981,178.72,178.66,4.54]
[1730236328124,2.7981,178.72,178.68,2.7986]
[1730236329522,2.7979,178.73,178.7,2.7983]
[1730236330730,2.7979,178.73,178.66,4.54]
[1730236330731,2.7982,178.72,178.68,2.7985]
[1730236331525,2.7982,178.72,178.69,2.7985]
[1730236332928,2.79535229,178.74,178.66,4.54]
[1730236333135,2.7982,178.72,178.68,2.7986]
[1730236335531,2.7979,178.73,178.7,2.7983]
[1730236339540,2.7977,178.74,178.68,2.7986]
[1730236339740,2.7977,178.74,178.66,4.54]
[1730236340137,2.798,178.73,178.7,2.7982]
[1730236340439,3.0039,178.76,178.65,4.54]
[1730236340835,2.7983,178.71,178.67,2.7987]
[1730236341037,5.59153601,178.71,178.67,2.7987]
[1730236341234,2.79323601,178.71,178.65,4.54]
[1730236341436,3.0039,178.76,178.65,4.54]
[1730236342039,2.7983,178.71,178.67,2.7987]
[1730236342344,2.77727786,178.71,178.67,2.7987]
[1730236342553,3.0039,178.76,178.67,2.7987]
[1730236342740,5.5952,178.75,178.59,1.7712]
[1730236342935,4.54,178.74,178.6,4.54]
[1730236343239,2.7991,178.66,178.62,2.7995]
[1730236343438,4.54,178.74,178.6,4.54]
[1730236343439,1.3413,178.73,178.6,4.54]
[1730236343836,1.3413,178.73,178.64,2.7992]
[1730236344042,1.3413,178.73,178.6,4.54]
[1730236344237,2.7984,178.7,178.64,2.7992]
[1730236344444,4.54,178.74,178.64,4.54]
[1730236345349,4.54,178.74,178.61,1.2274]
[1730236345536,4.54,178.74,178.62,4.54]
[1730236345735,2.7985,178.69,178.62,4.54]
[1730236347043,5.7872,178.74,178.62,4.54]
[1730236347944,2.7984,178.7,178.66,2.7989]
[1730236348139,2.7907163,178.75,178.66,4.54]
[1730236348549,2.7978,178.74,178.7,2.7983]
[1730236349551,2.7978,178.74,178.71,2.7982]
[1730236349753,5.5884163,178.75,178.71,2.7982]
[1730236351252,2.7977,178.75,178.71,2.7982]
[1730236351453,1.7452,178.76,178.73,2.7978]
[1730236351647,5.8487,178.8,178.7,4.54]
[1730236351845,1.2953,178.81,178.7,4.54]
[1730236353248,2.7972,178.78,178.7,4.54]
[1730236353845,2.7972,178.78,178.75,2.7976]
[1730236354550,2.7969,178.8,178.75,2.7976]
[1730236354759,1.2953,178.81,178.73,2.7977]
[1730236355354,2.7973,178.77,178.74,2.7977]
[1730236355756,1.2953,178.81,178.68,1.2377]
[1730236355962,1.2953,178.81,178.71,2.7981]
[1730236356144,1.2953,178.81,178.67,2.6188]
[1730236356341,1.2953,178.81,178.68,4.54]
[1730236356551,1.2953,178.81,178.72,2.798]
[1730236356957,2.7976,178.76,178.72,2.798]
[1730236357150,2.75942737,178.75,178.72,2.798]
[1730236358143,5.55702737,178.75,178.72,2.798]
[1730236358348,2.7976,178.75,178.72,2.798]
[1730236358847,4.54,178.79,178.68,4.54]
[1730236359051,2.7974,178.76,178.68,4.54]
[1730236359455,4.54,178.79,178.68,4.54]
[1730236359657,2.7974,178.77,178.73,2.7978]
[1730236360058,4.54,178.79,178.68,4.54]
[1730236360750,2.7976,178.75,178.71,2.7981]
[1730236361864,4.54,178.79,178.71,2.7981]
[1730236362952,2.7977,178.75,178.71,2.7981]
[1730236364248,4.54,178.79,178.71,2.7981]
[1730236364453,4.54,178.79,178.68,4.54]
[1730236364654,4.54,178.79,178.72,2.7979]
[1730236365059,2.7975,178.76,178.72,2.7979]
[1730236365262,2.7975,178.76,178.71,4.54]
[1730236365463,4.54,178.79,178.71,4.54]
[1730236365759,2.7973,178.77,178.71,4.54]
[1730236365960,2.7973,178.77,178.73,2.7978]
[1730236366558,1.2953,178.81,178.71,4.54]
[1730236366866,2.797,178.79,178.76,2.7974]
[1730236367169,1.2953,178.81,178.71,4.54]
[1730236367768,2.7971,178.78,178.74,2.7977]
[1730236368575,1.2953,178.81,178.75,2.7974]
[1730236368576,2.797,178.79,178.75,2.7974]
[1730236368763,2.797,178.79,178.71,4.54]
[1730236369470,1.2953,178.81,178.71,4.54]
[1730236370271,5.8229,178.83,178.71,4.54]
[1730236370272,2.7968,178.8,178.71,4.54]
[1730236370569,1.2829,178.83,178.71,4.54]
[1730236371069,2.7967,178.81,178.72,1.339]
[1730236371262,1.2829,178.83,178.73,1.253]
[1730236371454,2.7966,178.81,178.73,2.5099]
[1730236371971,2.7966,178.81,178.77,2.7971]
[1730236373866,20.78331143,178.99,178.76,4.52]
[1730236374065,4.52,178.92,178.76,4.52]
[1730236374280,7.26524646,178.92,178.76,4.52]
[1730236374457,2.7957,178.88,178.83,2.7962]
[1730236374662,2.74524646,178.92,178.83,7.3162]
[1730236374878,2.6227,178.93,178.83,7.3162]
[1730236375080,2.7952,178.9,178.83,7.3162]
[1730236375260,5.42112179,178.93,178.84,2.7961]
[1730236375772,2.7957,178.88,178.85,4.52]
[1730236375977,5.42112179,178.93,178.85,4.52]
[1730236376162,5.42112179,178.93,178.85,7.3159]
[1730236376365,2.7954,178.89,178.85,7.3159]
[1730236376577,22.4172,179.01,178.85,7.3159]
[1730236376772,1.2567,178.95,178.77,237.66824335]
[1730236376976,1.2567,178.95,178.78,4.52]
[1730236377469,2.7953,178.9,178.85,2.7959]
[1730236377678,2.7953,178.9,178.86,4.52]
[1730236378266,2.7956,178.88,178.86,4.52]
[1730236379368,2.84204499,178.9,178.8,2.67]
[1730236379570,2.7958,178.87,178.82,2.7964]
[1730236379770,2.7958,178.87,178.81,4.52]
[1730236380275,2.796,178.85,178.8,2.67]
[1730236380463,2.76764445,178.86,178.81,4.52]
[1730236380664,1.2376,178.91,178.81,4.52]
[1730236380863,4.02482354,178.91,178.81,4.52]
[1730236381275,2.7963,178.84,178.81,4.52]
[1730236381476,4.02482354,178.91,178.81,4.52]
[1730236381876,2.796,178.85,178.81,4.52]
[1730236383474,4.02482354,178.91,178.81,4.52]
[1730236383681,2.7961,178.85,178.81,4.52]
[1730236384686,4.02482354,178.91,178.81,4.52]
[1730236385079,4.02482354,178.91,178.81,7.3165]
[1730236385276,4.02482354,178.91,178.81,4.52]
[1730236386085,2.7961,178.85,178.82,2.7963]
[1730236386278,2.7961,178.85,178.81,4.52]
[1730236386788,4.02482354,178.91,178.77,237.66824335]
[1730236387087,4.02482354,178.91,178.77,242.18824335]
[1730236387390,4.02482354,178.91,178.77,244.98534335]
[1730236387580,20.85482354,178.91,178.73,61.7057]
[1730236387779,2.797,178.79,178.76,2.7974]
[1730236388378,2.797,178.79,178.74,4.52]
[1730236388579,2.797,178.79,178.75,2.7976]
[1730236389491,2.77112207,178.8,178.74,4.52]
[1730236389683,1.2926,178.84,178.74,4.52]
[1730236389684,2.7966,178.81,178.74,4.52]
[1730236389884,5.55121231,178.81,178.74,4.52]
[1730236390281,5.55121231,178.81,178.76,2.7973]
[1730236393389,5.55121231,178.81,178.74,4.52]
[1730236393590,2.7968,178.8,178.76,2.7973]
[1730236394090,2.797,178.79,178.73,2.7978]
[1730236394393,1.274,178.83,178.72,4.52]
[1730236394592,1.274,178.83,178.74,2.7977]
[1730236394593,2.7972,178.78,178.74,2.7977]
[1730236394786,2.7972,178.78,178.72,4.52]
[1730236395389,2.73645002,178.81,178.72,4.52]
[1730236395590,2.797,178.79,178.75,2.7975]
[1730236396500,2.80641448,178.81,178.72,4.52]
[1730236396796,1.274,178.83,178.72,4.52]
[1730236397296,2.7969,178.8,178.76,2.7974]
[1730236397595,2.74148746,178.81,178.72,4.52]
[1730236397800,1.274,178.83,178.75,2.7976]
[1730236397801,2.797,178.79,178.75,2.7976]
[1730236399502,2.7969,178.8,178.76,2.7974]
[1730236400595,2.84559922,178.81,178.72,4.52]
[1730236400899,2.797,178.79,178.75,2.7976]
[1730236403407,2.77562777,178.81,178.72,4.52]
[1730236403612,2.7968,178.8,178.76,2.7973]
[1730236403904,2.7968,178.8,178.72,4.52]
[1730236404302,2.7968,178.8,178.77,2.7972]
[1730236405004,2.7968,178.8,178.72,4.52]
[1730236405201,2.7968,178.8,178.76,2.7973]
[1730236406401,2.78318628,178.81,178.72,4.52]
[1730236406603,2.7966,178.82,178.78,2.7969]
[1730236409393,1.3063,178.89,178.76,4.52]
[1730236409600,4.52,178.88,178.76,4.52]
[1730236410303,2.7967,178.81,178.77,2.7972]
[1730236410805,2.7967,178.81,178.76,4.52]
[1730236411206,2.7967,178.81,178.77,2.7972]
[1730236414007,2.7454989,178.82,178.77,2.7972]
[1730236414205,4.52,178.88,178.76,4.52]
[1730236415001,2.7969,178.8,178.76,7.3174]
[1730236415406,2.86554977,178.81,178.76,2.7974]
[1730236415609,4.52,178.84,178.74,2.7976]
[1730236415804,2.5063,178.83,178.74,2.7976]
[1730236416204,2.7972,178.78,178.74,2.7976]
[1730236416412,2.79279167,178.79,178.73,4.52]
[1730236416709,2.5063,178.83,178.73,4.52]
[1730236416911,2.78551586,178.82,178.74,1.3328]
[1730236417419,2.7967,178.81,178.78,2.797]
[1730236417802,1.248,178.83,178.78,2.797]
[1730236418115,5.7925,178.88,178.77,4.52]
[1730236419010,2.7961,178.85,178.81,2.7965]
[1730236419509,1.2725,178.88,178.77,4.52]
[1730236419809,1.2725,178.88,178.82,2.7963]
[1730236420006,1.2725,178.88,178.77,4.52]
[1730236420408,2.7958,178.87,178.77,4.52]
[1730236421011,2.7959,178.86,178.82,2.7964]
[1730236422300,2.7959,178.86,178.83,2.7963]
[1730236422506,2.7956,178.88,178.81,4.52]
[1730236422705,181.99218516,178.9,178.82,4.52]
[1730236423106,1.248,178.9,178.82,4.52]
[1730236423911,2.7955,178.89,178.84,2.796]
[1730236424120,1.248,178.9,178.84,2.796]
[1730236424507,1.248,178.9,178.82,4.52]
[1730236424806,1.248,178.9,178.85,2.7959]
[1730236425003,2.7955,178.89,178.85,2.7959]
[1730236425207,1.248,178.9,178.82,4.52]
[1730236425515,1.3364,178.95,178.82,4.52]
[1730236425516,5.8564,178.95,178.82,4.52]
[1730236425820,1.3404,178.94,178.85,2.7959]
[1730236426209,1.3404,178.94,178.82,4.52]
[1730236426210,2.7951,178.91,178.83,1.2893]
[1730236427312,2.795,178.92,178.83,1.2893]
[1730236427510,1.3404,178.94,178.88,2.7954]
[1730236427814,2.7949,178.93,178.86,4.52]
[1730236428017,2.7949,178.93,178.89,2.7953]
[1730236428912,4.52,178.99,178.86,4.52]
[1730236429513,3.8285,179.0,178.86,4.52]
[1730236429718,4.5,178.99,178.86,4.52]
[1730236429912,7.29126293,178.99,178.86,4.52]
[1730236430112,2.7945,178.95,178.91,2.795]
[1730236430418,2.79126293,178.99,178.9,4.5]
[1730236430720,2.7941,178.97,178.94,2.7946]
[1730236430920,2.7941,178.97,178.9,4.5]
[1730236431219,2.7941,178.97,178.93,2.7946]
[1730236431415,2.794,178.98,178.9,4.5]
[1730236431716,2.794,178.98,178.93,2.7946]
[1730236432020,2.79126293,178.99,178.93,2.7946]
[1730236432214,2.7942,178.97,178.93,2.7946]
[1730236440220,2.79126293,178.99,178.9,4.5]
[1730236441429,2.5484,179.0,178.9,4.5]
[1730236441815,5.40455649,179.0,178.9,4.5]
[1730236442210,2.7942,178.97,178.93,2.7946]
[1730236442416,2.7942,178.97,178.94,4.5]
[1730236443120,2.794,178.98,178.94,4.5]
[1730236444522,2.794,178.98,178.94,7.2945]
[1730236444822,5.40455649,179.0,178.94,7.2945]
[1730236445027,2.7939,178.99,178.95,2.7944]
[1730236446414,4.0318,179.0,178.95,2.7944]
[1730236447417,1.2381,179.0,178.94,4.5]
[1730236449126,2.7941,178.98,178.94,7.2945]
[1730236449514,1.2381,179.0,178.94,7.2945]
[1730236450318,2.7941,178.97,178.94,7.2945]
[1730236454122,2.7941,178.98,178.94,7.2945]
[1730236454523,5.7774,179.03,178.95,2.7943]
[1730236454725,2.7939,178.99,178.95,2.7943]
[1730236455642,8.50646362,179.03,178.94,4.5]
[1730236455832,2.7937,179.0,178.97,2.794]
[1730236456237,2.7934,179.02,178.98,2.7939]
[1730236457240,2.7934,179.02,178.99,2.7938]
[1730236459442,2.7934,179.02,178.94,4.5]
[1730236460334,2.7934,179.02,178.96,2.7942]
[1730236460539,2.7934,179.02,178.94,4.5]
[1730236461246,2.7936,179.01,178.94,4.5]
[1730236461840,4.00646362,179.03,178.94,4.5]
[1730236463235,2.7939,178.99,178.93,2.7946]
[1730236463440,2.7939,178.99,178.94,4.5]
[1730236463842,2.7939,178.99,178.95,2.7944]
[1730236464548,2.7939,178.99,178.96,2.7943]
[1730236469946,4.00646362,179.03,178.9,3.8358]
[1730236470146,2.7942,178.97,178.93,2.7947]
[1730236470551,2.7942,178.97,178.91,4.5]
[1730236472149,2.7942,178.97,178.92,2.7948]
[1730236472351,2.7944,178.96,178.9,1.2328]
[1730236472544,2.7944,178.96,178.92,4.5]
[1730236472955,2.7944,178.96,178.93,2.7947]
[1730236473257,2.7944,178.96,178.92,4.5]
[1730236473450,8.50646362,179.03,178.92,4.5]
[1730236473645,8.50646362,179.03,178.94,2.7946]
[1730236474044,2.7944,178.96,178.92,7.2948]
[1730236474452,2.7944,178.96,178.92,4.5]
[1730236474647,2.7944,178.96,178.93,2.7947]
[1730236475248,2.7942,178.97,178.93,2.7947]
[1730236478349,2.7938,179.0,178.96,2.7942]
[1730236478549,8.50646362,179.03,178.96,2.7942]
[1730236479155,2.7938,178.99,178.96,2.7942]
[1730236483058,2.7937,179.0,178.96,2.7943]
[1730236484153,4.00646362,179.03,178.92,4.5]
[1730236484857,2.7943,178.96,178.93,2.7947]
[1730236485560,2.7943,178.96,178.94,2.7946]
[1730236486062,4.00646362,179.03,178.91,4.5]
[1730236486263,4.5,179.0,178.91,4.5]
[1730236486463,1.2822,178.99,178.91,4.5]
[1730236486666,2.7945,178.95,178.92,2.7949]
[1730236487760,2.7945,178.95,178.89,237.52522845]
[1730236487761,2.6321,178.99,178.89,237.52522845]
[1730236487958,2.6321,178.99,178.89,242.02522845]
[1730236488355,2.7947,178.94,178.9,2.7952]
[1730236491867,4.00646362,179.03,178.89,242.02522845]
[1730236492062,4.00646362,179.03,178.9,1.271]
[1730236492964,4.00646362,179.03,178.9,2.5149]
[1730236494065,2.7936,179.01,178.96,2.7942]
[1730236496277,4.00646362,179.03,178.96,2.7942]
[1730236496573,2.7937,179.0,178.96,2.7942]
[1730236497171,2.7935,179.02,178.98,2.7939]
[1730236497360,4.00646362,179.03,178.95,4.48]
[1730236497772,2.7935,179.02,178.95,4.48]
[1730236499257,2.7935,179.02,178.98,2.794]
[1730236500461,2.7935,179.02,178.95,4.48]
[1730236500671,2.7935,179.02,178.98,2.7939]
[1730236501264,2.7936,179.01,178.97,2.7941]
[1730236503873,4.00646362,179.03,178.95,2.7944]
[1730236503874,2.7939,178.99,178.95,2.7944]
[1730236504078,4.00646362,179.03,178.94,4.48]
[1730236504470,2.7938,179.0,178.96,2.7943]
[1730236504877,4.00646362,179.03,178.96,2.7943]
[1730236506478,4.00646362,179.03,178.94,4.48]
[1730236506874,2.7936,179.01,178.94,4.48]
[1730236507061,2.7936,179.01,178.97,2.794]
[1730236508278,2.7936,179.01,178.94,4.48]
[1730236508580,4.00646362,179.03,178.96,2.7942]
[1730236509086,2.7938,179.0,178.96,2.7942]
[1730236509975,4.00646362,179.03,178.96,2.7942]
[1730236510173,2.7939,178.99,178.96,2.7942]
[1730236510376,2.7939,178.99,178.95,2.7944]
[1730236510779,4.00646362,179.03,178.94,4.48]
[1730236511573,4.00646362,179.03,178.88,1.2698]
[1730236511875,8.48646362,179.03,178.88,4.48]
[1730236512472,5.5869,179.02,178.88,4.48]
[1730236512774,2.7945,178.95,178.91,2.7949]
[1730236512983,4.48,178.99,178.88,4.48]
[1730236513184,2.6376,178.98,178.88,4.48]
[1730236513486,2.7949,178.93,178.9,2.7952]
[1730236513779,2.77320811,178.94,178.88,4.48]
[1730236513973,2.6376,178.98,178.88,4.48]
[1730236513974,2.7952,178.91,178.88,2.7955]
[1730236514486,1.3468,178.95,178.86,4.48]
[1730236514677,2.7953,178.9,178.87,2.7956]
[1730236515079,2.7650647,178.93,178.87,2.7956]
[1730236515284,2.7951,178.91,178.87,2.7956]
[1730236515481,5.58253803,178.91,178.87,2.7957]
[1730236517282,2.78743803,178.91,178.84,4.48]
[1730236517586,1.3468,178.95,178.84,4.48]
[1730236517979,2.7952,178.91,178.87,2.7956]
[1730236518187,2.7952,178.91,178.84,4.48]
[1730236518684,5.56965112,178.91,178.86,2.7958]
[1730236520183,2.77445112,178.91,178.84,4.48]
[1730236520385,1.3468,178.95,178.87,2.7956]
[1730236520583,1.2987,178.98,178.88,4.48]
[1730236520899,2.75888313,179.0,178.88,4.48]
[1730236521196,2.75888313,179.0,178.89,3.8142]
[1730236521789,1.3275,179.01,178.89,3.8142]
[1730236522399,2.609,179.06,178.9,5.5905]
[1730236522891,1.2726,179.06,178.9,5.5905]
[1730236523093,1.3395,179.08,178.91,65.9902]
[1730236523288,1.3395,179.08,178.92,4.48]
[1730236523784,1.3395,179.08,178.93,5.5893]
[1730236523986,1.3395,179.08,178.92,4.48]
[1730236524191,2.6686,179.12,178.94,5.5892]
[1730236524386,1.3232,179.12,178.94,5.5892]
[1730236524585,5.53623416,179.11,178.99,2.7938]
[1730236524780,2.7921,179.11,179.0,8.4408]
[1730236525179,2.7921,179.11,179.04,2.7929]
[1730236525394,2.7921,179.11,179.05,4.48]
[1730236525594,2.7921,179.11,179.06,4.48]
[1730236528192,2.7919,179.12,179.06,7.2726]
[1730236528394,2.79317263,179.14,179.06,4.48]
[1730236528597,4.48,179.19,179.06,4.48]
[1730236528801,2.74260103,179.19,179.06,4.48]
[1730236529008,1.3395,179.22,179.06,4.48]
[1730236529305,1.3395,179.22,179.12,237.207349]
[1730236529607,1.3395,179.22,179.13,4.48]
[1730236529906,5.8195,179.22,179.11,4.48]
[1730236530998,2.7912,179.16,179.12,2.7917]
[1730236531188,2.7912,179.16,179.11,4.48]
[1730236531396,2.72799592,179.18,179.11,4.48]
[1730236531699,5.8195,179.22,179.12,2.7918]
[1730236532098,5.8195,179.22,179.11,4.48]
[1730236533003,2.791,179.18,179.12,2.7918]
[1730236533201,5.63267405,179.18,179.12,2.7918]
[1730236533401,2.791,179.18,179.12,2.7918]
[1730236533595,2.7911,179.17,179.11,7.2718]
[1730236534303,2.8535249,179.18,179.11,7.2718]
[1730236534304,2.7909,179.18,179.12,2.7917]
[1730236535394,2.7909,179.18,179.13,4.48]
[1730236535595,2.72924003,179.19,179.05,237.28475604]
[1730236535791,4.48,179.21,179.06,4.48]
[1730236536004,1.2976,179.2,179.06,4.48]
[1730236536209,4.03884958,179.2,179.06,4.48]
[1730236536893,2.7915,179.14,179.09,2.7921]